[Event "POL-chT 2nd League Juniors 2020"]
[Site "Sypniewo"]
[Date "2020.10.24"]
[Round "2.10"]
[White "Oles, Mateusz"]
[Black "Nowakowski, Maksymilian"]
[Result "1/2-1/2"]
[ECO "C01"]
[WhiteElo "1029"]
[BlackElo "1113"]
[Annotator "NA RC"]
[PlyCount "69"]
[EventDate "2020.10.23"]
[EventType "team-tourn"]
[EventCountry "POL"]
[SourceTitle "playchess.com"]
[Source "ChessBase"]
[SourceQuality "1"]
[TimeControl "5400+30"]

1. e4 {[%emt 0:00:00]} e6 {[%emt 0:00:00]} 2. d4 {[%emt 0:00:00]} d5 {[%emt 0:00:00]} 3. exd5 {[%emt 0:00:30]} exd5 {[%emt 0:00:19]} 4. Nf3 {[%emt 0:00:36]} Nf6 {[%emt 0:00:51]} 5. c4 {[%emt 0:01:41]} Bg4 {[%emt 0:00:54]} 6. Be3 {[%emt 0:02:57]} c6 {[%emt 0:00:50]} 7. Nc3 {[%emt 0:00:23]} Bb4 {[%emt 0:00:29]} 8. a3 {[%emt 0:02:33]} Bxc3+ {[%emt 0:00:22]} 9. bxc3 {[%emt 0:00:11]} Qa5 {[%emt 0:00:45]} 10. Bd2 {[%emt 0:07:10]} O-O {[%emt 0:01:34]} 11. cxd5 {[%emt 0:06:35]} Qxd5 {[%emt 0:00:17]} 12. Be2 {[%emt 0:01:07]} Re8 {[%emt 0:00:57]} 13. O-O {[%emt 0:00:19]} Ne4 {[%emt 0:01:20]} 14. h3 {[%emt 0:01:14]} Nxd2 {[%emt 0:01:40]} 15. Qxd2 {[%emt 0:00:15]} Bf5 {[%emt 0:01:28]} 16. Rfe1 {[%emt 0:01:46]} Nd7 {[%emt 0:00:48]} 17. c4 {[%emt 0:04:28]} Qd6 {[%emt 0:00:44]} 18. Bd3 {[%emt 0:02:00]} Bxd3 {[%emt 0:01:01]} 19. Qxd3 {[%emt 0:00:12]} Nc5 {[%emt 0:00:16]} 20. Qf5 Nb3 {[%emt 0:02:55]} 21. Ng5 {[%emt 0:05:38]} Qg6 {[%emt 0:00:09]} 22. Qxg6 {[%emt 0:01:37]} hxg6 {[%emt 0:00:07]} 23. Rxe8+ {[%emt 0:00:58]} Rxe8 {[%emt 0:00:07]} 24. Rd1 {[%emt 0:00:08]} f6 {[%emt 0:00:52]} 25. Nf3 {[%emt 0:00:22]} Rd8 {[%emt 0:00:39]} 26. Kh2 {[%emt 0:12:27]} Kf7 {[%emt 0:02:01]} 27. Kg3 {[%emt 0:01:50]} Rd7 {[%emt 0:00:13]} 28. h4 {[%emt 0:02:41]} Na5 {[%emt 0:01:27]} 29. Rc1 {[%emt 0:00:31]} Nb3 {[%emt 0:01:14]} 30. Rd1 {[%emt 0:00:22]} Na5 {[%emt 0:00:26]} 31. Rc1 {[%emt 0:00:32]} Nb3 {[%emt 0:01:42]} 32. Rd1 {[%emt 0:00:18]} Na5 {[%emt 0:00:45]} 33. Rc1 {[%emt 0:00:12]} Nb3 {[%emt 0:01:03]} 34. Rd1 {[%emt 0:00:07]} Na5 {[%emt 0:02:45]} 35. Rc1 {[%emt 0:00:08]} 1/2-1/2

[Event "POL-chT 2nd League Juniors 2020"]
[Site "Sypniewo"]
[Date "2020.10.24"]
[Round "2.11"]
[White "Wasala, Wiktoria"]
[Black "Hertlein, Irena"]
[Result "0-1"]
[ECO "B23"]
[WhiteElo "1458"]
[BlackElo "1893"]
[Annotator "NA RC"]
[PlyCount "98"]
[EventDate "2020.10.23"]
[EventType "team-tourn"]
[EventCountry "POL"]
[SourceTitle "playchess.com"]
[Source "ChessBase"]
[SourceQuality "1"]
[TimeControl "5400+30"]

{[%evp 8,87,-4,-43,-36,-48,32767,-46,-33,-53,-53,-85,-35,32767,32767,-66,-58,32767,32767,32767,32767,32767,32767,33,32767,32767,32767,60,80,32767,32767,32767,105,103,32767,66,83,65,84,79,76,32767,105,100,32767,106,109,119,126,116,181,32767,176,93,32767,32767,32767,227,312,213,264,0,0,-42,32767,32767,-14,-462,-518,-548,32767,-881,32767,-293,-309,-457,-488,32767,32767,-887,-995,-1099]} 1. e4 {[%emt 0:00:00]} c5 {[%emt 0:00:00]} 2. Nc3 {[%emt 0:00:00]} Nc6 {[%emt 0:00:00]} 3. f4 {[%emt 0:00:00]} g6 {[%emt 0:00:08]} 4. Nf3 {[%emt 0:00:19]} Bg7 {[%emt 0:00:07]} 5. Bc4 {[%emt 0:00:45]} e6 {[%emt 0:00:26]} 6. O-O {[%emt 0:01:28]} Nge7 {[%emt 0:02:02]} 7. Be2 {[%emt 0:08:52] B23: Closed Sicilian: Lines without g3.} O-O {[%emt 0:06:25]} 8. d3 {[%emt 0:02:32]} d5 {[%emt 0:01:13]} 9. e5 {[%emt 0:05:43]} a6 {[%emt 0:01:10] [#]} 10. Na4 $146 {[%emt 0:05:57]} ({Predecessor:} 10. Nb1 b5 11. c3 Bb7 12. Be3 d4 13. Bd2 Qb6 14. Ng5 Rad8 15. a4 dxc3 16. bxc3 {1-0 (57) Fernandez Garcia,I (1907)-Garcia Fernandez,J (1892) Madrid 2014}) 10... b6 {[%emt 0:07:49]} 11. d4 {[%emt 0:04:29]} cxd4 {[%emt 0:15:16]} 12. Nxd4 {[%emt 0:00:09]} b5 {[%emt 0:00:24]} 13. Nc5 {[%emt 0:06:57]} Qb6 {[%emt 0:06:17]} 14. Ndb3 {[%emt 0:01:34]} Rd8 {[%emt 0:15:53]} 15. Be3 {[%emt 0:05:51]} Bf8 {[%emt 0:04:27]} 16. Bf2 {[%emt 0:01:05]} Qc7 {[%emt 0:04:41]} 17. c3 {[%emt 0:03:18]} Nf5 {[%emt 0:05:03]} 18. Bf3 {[%emt 0:06:59]} Rb8 {[%emt 0:02:45]} 19. g4 {[%emt 0:03:00]} Ng7 {[%emt 0:03:22]} 20. Nd3 {[%emt 0:03:33]} a5 {[%emt 0:06:12]} 21. Nd4 {[%emt 0:03:06]} Ba6 {[%emt 0:01:32]} 22. Rc1 {[%emt 0:01:21]} Qd7 {[%emt 0:03:13]} 23. Nxc6 {[%emt 0:03:13]} Qxc6 {[%emt 0:00:01]} 24. b4 {[%emt 0:00:24]} a4 {[%emt 0:07:06]} 25. Nc5 {[%emt 0:00:48]} Be7 {[%emt 0:02:23]} 26. Bd4 {[%emt 0:02:21]} Bc8 {[%emt 0:01:01]} 27. Qe1 {[%emt 0:02:28]} Ne8 {[%emt 0:01:41]} 28. a3 {[%emt 0:02:27]} Nc7 {[%emt 0:02:27]} 29. Qf2 {[%emt 0:04:26]} Na8 {[%emt 0:00:38]} 30. c4 {[%emt 0:00:19]} (30. Be2 $142) 30... bxc4 {[%emt 0:00:05]} 31. Rxc4 {[%emt 0:00:07]} Qb5 {[%emt 0:00:46] [#]} 32. Rc3 $1 {[%emt 0:01:19]} Nb6 {[%emt 0:00:37]} 33. Be2 {[%emt 0:00:32]} Nc4 {[%emt 0:00:25]} 34. Bxc4 $2 {[%emt 0:00:25]} (34. Bd3 $18) 34... dxc4 {[%emt 0:00:01]} 35. Rfc1 {[%emt 0:00:11]} Bxc5 {[%emt 0:00:33]} 36. Bxc5 {[%emt 0:00:14]} Bb7 {[%emt 0:00:28]} 37. Rxc4 $2 {[%emt 0:02:25]} (37. Bd6 $11) 37... Qc6 {[%emt 0:00:07]} 38. Kf1 {[%emt 0:00:17]} Ba6 {[%emt 0:00:31]} 39. Ke1 {[%emt 0:04:27]} Qh1+ {[%emt 0:01:34]} 40. Qf1 {[%emt 0:01:01]} Qd5 {[%emt 0:00:23] Pin} ({But not} 40... Qxh2 41. R4c2 $19) 41. Rd4 {[%emt 0:02:48]} (41. Bd6 {keeps fighting.} Bxc4 42. Qxc4 Qh1+ {[%mdl 64] Double Attack} 43. Qf1 Qxh2 44. Qf3) 41... Qxd4 {[%emt 0:00:21]} ({Less strong is} 41... Bxf1 42. Rxd5 Rxd5 43. Kxf1 $17) 42. Bxd4 {[%emt 0:01:13]} Bxf1 {[%emt 0:00:02]} 43. Kxf1 {[%emt 0:00:55]} (43. Rd1 $142 Bb5 44. Rd2) 43... Rxd4 {[%emt 0:00:01]} 44. Rb1 $19 {[%emt 0:00:30]} Rxf4+ {[%emt 0:00:09]} 45. Ke2 {[%emt 0:00:07]} Rxg4 {[%emt 0:00:25]} 46. b5 {[%emt 0:00:11]} Re4+ {[%emt 0:00:10]} 47. Kd3 {[%emt 0:00:07]} Rxe5 {[%emt 0:00:03]} 48. Kc4 {[%emt 0:00:20]} Re3 {[%emt 0:00:34]} 49. Kb4 {[%emt 0:00:38]} Rb3+ {[%emt 0:00:10]} 0-1

[Event "POL-chT 2nd League Juniors 2020"]
[Site "Sypniewo"]
[Date "2020.10.24"]
[Round "2.14"]
[White "Topola, Rafal"]
[Black "Zniszczol, Wiktoria"]
[Result "1-0"]
[ECO "B23"]
[WhiteElo "1827"]
[BlackElo "1620"]
[Annotator "NA RC"]
[PlyCount "83"]
[EventDate "2020.10.23"]
[EventType "team-tourn"]
[EventCountry "POL"]
[SourceTitle "playchess.com"]
[Source "ChessBase"]
[SourceQuality "1"]
[TimeControl "5400+30"]

{[%evp 8,76,32,32767,19,35,26,32767,2,-29,-18,-23,32767,32767,-23,-21,32767,-59,32767,-47,32767,-80,32767,-99,32767,32767,175,32767,32767,183,281,275,267,32767,365,365,32767,384,32767,32767,32767,421,392,414,421,417,415,404,462,32767,515,32767,478,424,354,423,381,439,400,400,426,32767,438,461,619,645,616,638,637,638,644]} 1. e4 {[%emt 0:00:00]} c5 {[%emt 0:00:00]} 2. Nc3 {[%emt 0:02:37]} a6 {[%emt 0:00:47]} 3. g3 {[%emt 0:00:49]} b5 {[%emt 0:08:21]} 4. Bg2 {[%emt 0:00:47]} Bb7 {[%emt 0:00:44]} 5. Nge2 {[%emt 0:00:39]} d6 {[%emt 0:00:42]} 6. O-O {[%emt 0:01:04] B23: Closed Sicilian: Lines without g3.} Nf6 {[%emt 0:00:38]} 7. d3 {[%emt 0:00:49] has lost popularity (7.d4).} e6 {[%emt 0:00:23]} 8. Bg5 {[%emt 0:05:17]} Be7 {[%emt 0:00:51] [#]} 9. a4 $146 {[%emt 0:11:21]} ({Predecessor:} 9. Nf4 Nfd7 10. Bxe7 Qxe7 11. Qd2 O-O 12. a4 b4 13. Nd1 e5 14. Nd5 Bxd5 15. exd5 {1-0 (68) Arat,U (2007)-Eggink,R (1925) Batumi 2010}) 9... Qb6 {[%emt 0:05:29]} 10. Qd2 {[%emt 0:12:36]} b4 {[%emt 0:13:21]} 11. Nd1 {[%emt 0:00:15]} h6 {[%emt 0:00:06]} 12. Bf4 {[%emt 0:00:54]} Qc7 {[%emt 0:07:56]} 13. Re1 {[%emt 0:08:59]} a5 {[%emt 0:09:37]} 14. e5 {[%emt 0:08:45]} Bxg2 {[%emt 0:03:50]} 15. exf6 {[%emt 0:01:34]} Bxf6 {[%emt 0:01:41]} 16. Kxg2 {[%emt 0:00:11]} Qc6+ {[%emt 0:02:27]} 17. Kg1 {[%emt 0:00:14]} g5 {[%emt 0:01:13]} 18. Be3 {[%emt 0:00:20]} d5 {[%emt 0:00:38]} (18... Qf3 $142 19. d4 Nc6) 19. c3 {[%emt 0:05:49]} Nd7 {[%emt 0:09:24]} 20. d4 {[%emt 0:00:44]} b3 {[%emt 0:02:54]} 21. f4 {[%emt 0:01:42]} c4 {[%emt 0:01:07]} 22. fxg5 {[%emt 0:01:05]} hxg5 {[%emt 0:00:47]} 23. Bxg5 {[%emt 0:00:06]} O-O-O {[%emt 0:00:58]} 24. Bxf6 {[%emt 0:08:11]} Nxf6 {[%emt 0:00:19]} 25. Qf4 {[%emt 0:00:08]} Ne4 {[%emt 0:01:48]} 26. Nf2 {[%emt 0:01:02]} Nd6 {[%emt 0:00:38]} 27. Ng4 {[%emt 0:01:56]} Nf5 {[%emt 0:04:03]} 28. Ne5 {[%emt 0:00:34]} Qb7 {[%emt 0:02:49]} 29. Rf1 {[%emt 0:08:13]} Rdg8 {[%emt 0:02:10]} 30. Rf2 {[%emt 0:01:21]} Rh4 {[%emt 0:02:35]} 31. Qd2 {[%emt 0:00:47]} f6 {[%emt 0:02:03]} 32. Nf3 {[%emt 0:02:34]} Re4 {[%emt 0:06:55]} 33. Nf4 {[%emt 0:01:29]} Qc7 {[%emt 0:04:05]} 34. Ng2 {[%emt 0:00:27]} Qh7 {[%emt 0:04:24]} 35. Re1 {[%emt 0:01:30]} Rh8 {[%emt 0:00:44]} 36. Rxe4 {[%emt 0:02:27]} dxe4 {[%emt 0:00:42]} 37. Nfh4 {[%emt 0:00:10]} e3 {[%emt 0:00:43]} 38. Nxe3 {[%emt 0:00:14]} Nxh4 $18 {[%emt 0:00:17]} 39. gxh4 {[%emt 0:00:08]} Qxh4 {[%emt 0:00:43]} 40. Rg2 {[%emt 0:00:58]} Qe4 {[%emt 0:00:36]} 41. Qe2 {[%emt 0:02:11]} Kd7 {[%emt 0:00:29]} 42. Nxc4 1-0

[Event "POL-chT 2nd League Juniors 2020"]
[Site "Sypniewo"]
[Date "2020.10.24"]
[Round "2.15"]
[White "Karut, Kacper"]
[Black "Nowak, Filip"]
[Result "1/2-1/2"]
[ECO "C88"]
[WhiteElo "1657"]
[BlackElo "1871"]
[Annotator "NA RC"]
[PlyCount "63"]
[EventDate "2020.10.23"]
[EventType "team-tourn"]
[EventCountry "POL"]
[SourceTitle "playchess.com"]
[Source "ChessBase"]
[SourceQuality "1"]
[TimeControl "5400+30"]

{[%evp 8,61,14,22,21,22,39,27,29,32767,18,32767,8,32767,29,12,18,32767,32767,8,32767,8,32767,32767,32767,4,4,32767,20,-16,0,32767,32767,-3,32767,-14,32767,0,24,32767,32767,32767,0,32767,68,64,76,73,259,32767,52,-57,32767,32767,-60,-60]} 1. e4 {[%emt 0:00:00]} e5 {[%emt 0:00:00]} 2. Nf3 {[%emt 0:00:32]} Nc6 {[%emt 0:00:00]} 3. Bb5 {[%emt 0:00:12]} a6 {[%emt 0:00:00]} 4. Ba4 {[%emt 0:00:54]} Nf6 {[%emt 0:00:19]} 5. O-O {[%emt 0:00:24]} Be7 {[%emt 0:00:21]} 6. Re1 {[%emt 0:00:12]} b5 {[%emt 0:00:24]} 7. Bb3 {[%emt 0:00:05]} d6 {[%emt 0:00:09]} 8. a4 {[%emt 0:04:28]} b4 {[%emt 0:00:07]} 9. h3 {[%emt 0:06:59] C90: Closed Ruy Lopez with 7...d6: Early deviations.} Na5 {[%emt 0:06:34]} 10. Ba2 {[%emt 0:05:28]} Bb7 {[%emt 0:00:17]} 11. d3 {[%emt 0:03:31]} O-O {[%emt 0:01:19]} 12. Nbd2 {[%emt 0:05:10] [#]} c6 $146 {[%emt 0:09:58]} ({Predecessor:} 12... c5 13. c3 Rc8 14. cxb4 cxb4 15. Nf1 d5 16. exd5 b3 17. Bxb3 Nxb3 18. Qxb3 Qxd5 19. Qxd5 Nxd5 20. Nxe5 {½-½ (32) Svidler,P (2728)-Aronian,L (2744) Wijk aan Zee 2007}) 13. Nb3 {[%emt 0:15:21]} h6 {[%emt 0:06:25]} 14. Bd2 {[%emt 0:05:07]} Nxb3 {[%emt 0:03:29]} 15. Bxb3 {[%emt 0:00:35]} a5 {[%emt 0:00:31]} 16. c3 {[%emt 0:14:37]} bxc3 {[%emt 0:07:53]} 17. Bxc3 {[%emt 0:04:38]} c5 {[%emt 0:02:10]} 18. Qd2 {[%emt 0:01:20]} Bc6 {[%emt 0:00:55]} 19. Bc4 {[%emt 0:02:15]} Qc7 {[%emt 0:01:31]} 20. Nh2 {[%emt 0:06:43]} Nh5 {[%emt 0:04:38]} 21. Ng4 {[%emt 0:05:52]} Bg5 {[%emt 0:04:43]} 22. Ne3 {[%emt 0:01:02]} ({Better is} 22. Qd1 $1 $14) 22... Nf4 {[%emt 0:01:34]} 23. Qd1 {[%emt 0:02:31]} Kh8 {[%emt 0:03:37]} 24. Kh2 {[%emt 0:03:02]} f5 {[%emt 0:18:09]} 25. f3 {[%emt 0:03:57]} g6 {[%emt 0:06:35]} (25... Bd7 $11) 26. g3 {[%emt 0:03:34]} Nh5 {[%emt 0:00:25]} 27. Nd5 {[%emt 0:01:06]} Qb8 $2 {[%emt 0:03:23]} (27... Bxd5 $16 28. Bxd5 Rae8) 28. Rg1 {[%emt 0:01:06]} Ra7 {[%emt 0:02:42]} ({Black should try} 28... f4 $15 29. g4 Ng7) 29. b3 {[%emt 0:01:12]} (29. f4 $1 $14 Bxd5 30. Bxd5) 29... f4 {[%emt 0:04:00]} 30. g4 {[%emt 0:00:55]} Nf6 {[%emt 0:00:18]} 31. Nxf6 $15 {[%emt 0:00:25]} Bxf6 {[%emt 0:00:20]} 32. Be1 {[%emt 0:00:35]} 1/2-1/2

[Event "POL-chT 2nd League Juniors 2020"]
[Site "Sypniewo"]
[Date "2020.10.24"]
[Round "2.16"]
[White "Zimny, Jakub"]
[Black "Pycinski, Wladyslaw"]
[Result "0-1"]
[ECO "B27"]
[WhiteElo "1569"]
[BlackElo "1149"]
[Annotator "NA RC"]
[PlyCount "148"]
[EventDate "2020.10.23"]
[EventType "team-tourn"]
[EventCountry "POL"]
[SourceTitle "playchess.com"]
[Source "ChessBase"]
[SourceQuality "1"]
[TimeControl "5400+30"]

1. e4 {[%emt 0:00:00]} c5 {[%emt 0:00:00]} 2. Nf3 {[%emt 0:00:00]} g6 {[%emt 0:00:16]} 3. d4 {[%emt 0:00:02]} cxd4 {[%emt 0:00:09]} 4. Nxd4 {[%emt 0:00:13]} Nc6 {[%emt 0:00:08]} 5. Be3 {[%emt 0:00:35]} Bg7 {[%emt 0:00:17]} 6. c4 {[%emt 0:00:41]} Nf6 {[%emt 0:00:27]} 7. Nc3 {[%emt 0:01:01]} d6 {[%emt 0:00:22]} 8. Be2 {[%emt 0:01:32]} Qa5 {[%emt 0:01:43]} 9. O-O {[%emt 0:09:19]} O-O {[%emt 0:00:33]} 10. f4 {[%emt 0:06:34]} Bd7 {[%emt 0:04:03]} 11. Nb3 {[%emt 0:10:23]} Qd8 {[%emt 0:01:55]} 12. c5 {[%emt 0:06:15]} dxc5 {[%emt 0:01:24]} 13. e5 {[%emt 0:00:15]} Ne8 {[%emt 0:02:48]} 14. Nxc5 {[%emt 0:01:27]} Bc8 {[%emt 0:01:03]} 15. Qxd8 {[%emt 0:20:44]} Nxd8 {[%emt 0:00:08]} 16. Rfd1 {[%emt 0:02:24]} Nc7 {[%emt 0:00:36]} 17. Rd2 {[%emt 0:01:50]} Nde6 {[%emt 0:01:16]} 18. Rad1 {[%emt 0:00:45]} g5 {[%emt 0:06:14]} 19. g3 {[%emt 0:03:11]} gxf4 {[%emt 0:01:39]} 20. gxf4 {[%emt 0:00:10]} Bh6 {[%emt 0:00:15]} 21. Nxe6 {[%emt 0:02:00]} Nxe6 {[%emt 0:02:32]} 22. Nd5 {[%emt 0:01:38]} Kh8 {[%emt 0:04:41]} 23. f5 {[%emt 0:05:24]} Bxe3+ {[%emt 0:00:28]} 24. Nxe3 {[%emt 0:00:11]} Nf4 {[%emt 0:00:59]} 25. Bf3 {[%emt 0:03:25]} Rg8+ {[%emt 0:00:46]} 26. Kf1 {[%emt 0:00:47]} Nh3 {[%emt 0:04:32]} 27. Rd8 {[%emt 0:00:33]} Ng5 {[%emt 0:02:00]} 28. Rxg8+ {[%emt 0:01:35]} Kxg8 {[%emt 0:00:05]} 29. Rd8+ {[%emt 0:00:28]} Kg7 {[%emt 0:00:04]} 30. Bg2 {[%emt 0:00:15]} Rb8 {[%emt 0:01:05]} 31. h4 {[%emt 0:00:32]} b6 {[%emt 0:00:43]} 32. hxg5 {[%emt 0:00:44]} Ba6+ {[%emt 0:00:10]} 33. Kf2 {[%emt 0:00:18]} Rxd8 {[%emt 0:00:10]} 34. f6+ {[%emt 0:00:56]} exf6 {[%emt 0:00:19]} 35. gxf6+ {[%emt 0:00:13]} Kf8 {[%emt 0:00:08]} 36. Bd5 {[%emt 0:01:38]} Bc8 {[%emt 0:01:51]} 37. Kg3 {[%emt 0:01:15]} Be6 {[%emt 0:00:28]} 38. Bxe6 {[%emt 0:01:16]} fxe6 {[%emt 0:00:18]} 39. Nc4 {[%emt 0:00:44]} Kf7 {[%emt 0:02:45]} 40. b3 {[%emt 0:00:41]} b5 {[%emt 0:00:46]} 41. Na5 {[%emt 0:01:06]} Rd5 {[%emt 0:12:38]} 42. Nc6 {[%emt 0:01:50]} Ke8 {[%emt 0:00:58]} 43. Kg4 {[%emt 0:00:58]} Rc5 {[%emt 0:00:42]} 44. Nxa7 {[%emt 0:02:01]} Rxe5 {[%emt 0:00:42]} 45. Nc6 {[%emt 0:00:40]} Rf5 {[%emt 0:00:45]} 46. Nd4 {[%emt 0:00:26]} Rxf6 {[%emt 0:00:19]} 47. Nxb5 {[%emt 0:00:08]} e5 {[%emt 0:00:53]} 48. Kg5 {[%emt 0:01:53]} Rf2 {[%emt 0:00:22]} 49. a4 {[%emt 0:02:25]} Kd7 {[%emt 0:01:52]} 50. Nc3 {[%emt 0:01:25]} Rb2 {[%emt 0:02:29]} 51. Kf5 {[%emt 0:01:39]} Kd6 {[%emt 0:00:20]} 52. Ne4+ {[%emt 0:01:12]} Kd5 {[%emt 0:01:25]} 53. Nc3+ {[%emt 0:00:25]} Kc5 {[%emt 0:00:38]} 54. Kxe5 {[%emt 0:00:28]} Rxb3 {[%emt 0:00:44]} 55. Ne4+ {[%emt 0:00:09]} Kb4 {[%emt 0:00:26]} 56. Kf4 {[%emt 0:00:21]} Rb1 {[%emt 0:00:22]} 57. Ng3 {[%emt 0:00:46]} Rg1 {[%emt 0:00:14]} 58. Kg4 {[%emt 0:04:45]} Kxa4 {[%emt 0:00:32]} 59. Kh3 {[%emt 0:00:14]} Kb4 {[%emt 0:00:16]} 60. Kh2 {[%emt 0:00:21]} Ra1 {[%emt 0:00:08]} 61. Nh5 {[%emt 0:01:11]} Kc5 {[%emt 0:00:54]} 62. Nf6 {[%emt 0:00:23]} Ra7 {[%emt 0:00:10]} 63. Kh3 {[%emt 0:01:08]} Kd6 {[%emt 0:00:28]} 64. Ne4+ {[%emt 0:02:59]} Ke5 {[%emt 0:00:57]} 65. Ng5 {[%emt 0:00:57]} h6 {[%emt 0:00:39]} 66. Nf3+ {[%emt 0:00:34]} Kf4 {[%emt 0:00:10]} 67. Nd4 {[%emt 0:00:23]} Re7 {[%emt 0:01:00]} 68. Kh2 {[%emt 0:00:45]} Re4 {[%emt 0:00:18]} 69. Nc6 {[%emt 0:00:23]} Kg4 {[%emt 0:00:30]} 70. Kg2 {[%emt 0:00:39]} h5 {[%emt 0:00:29]} 71. Kf2 {[%emt 0:00:23]} h4 {[%emt 0:00:26]} 72. Kg1 {[%emt 0:00:32]} Kg3 {[%emt 0:00:09]} 73. Kf1 {[%emt 0:00:14]} h3 {[%emt 0:00:17]} 74. Nd4 {[%emt 0:00:16]} Rxd4 {[%emt 0:00:19]} 0-1

[Event "POL-chT 2nd League Juniors 2020"]
[Site "Sypniewo"]
[Date "2020.10.24"]
[Round "2.17"]
[White "Kudlak, Julia"]
[Black "Jedrzejko, Martyna"]
[Result "1/2-1/2"]
[ECO "B33"]
[WhiteElo "1574"]
[BlackElo "1618"]
[Annotator "NA RC"]
[PlyCount "135"]
[EventDate "2020.10.23"]
[EventType "team-tourn"]
[EventCountry "POL"]
[SourceTitle "playchess.com"]
[Source "ChessBase"]
[SourceQuality "1"]
[TimeControl "5400+30"]

1. e4 {[%emt 0:00:00]} c5 {[%emt 0:00:00]} 2. Nf3 {[%emt 0:00:00]} Nc6 {[%emt 0:00:00]} 3. d4 {[%emt 0:00:01]} cxd4 {[%emt 0:00:00]} 4. Nxd4 {[%emt 0:00:11]} Nf6 {[%emt 0:00:26]} 5. Nc3 {[%emt 0:00:37]} e5 {[%emt 0:00:18]} 6. Ndb5 {[%emt 0:00:56]} d6 {[%emt 0:00:22]} 7. Bg5 {[%emt 0:01:07]} a6 {[%emt 0:00:28]} 8. Na3 {[%emt 0:00:35]} b5 {[%emt 0:00:33]} 9. Nd5 {[%emt 0:00:52]} Be7 {[%emt 0:00:24]} 10. Bxf6 {[%emt 0:02:08]} Bxf6 {[%emt 0:00:14]} 11. c3 {[%emt 0:03:11]} O-O {[%emt 0:03:21]} 12. Nc2 {[%emt 0:03:43]} Bg5 {[%emt 0:01:49]} 13. h4 {[%emt 0:02:52]} Bh6 {[%emt 0:00:50]} 14. g4 {[%emt 0:03:26]} Bf4 {[%emt 0:04:35]} 15. Qf3 {[%emt 0:05:59]} Re8 {[%emt 0:06:11]} 16. Be2 {[%emt 0:13:33]} Bb7 {[%emt 0:09:29]} 17. Nxf4 {[%emt 0:04:44]} exf4 {[%emt 0:00:07]} 18. Qxf4 {[%emt 0:10:21]} Qe7 {[%emt 0:01:24]} 19. f3 {[%emt 0:02:34]} d5 {[%emt 0:00:35]} 20. O-O-O {[%emt 0:03:37]} dxe4 {[%emt 0:01:47]} 21. fxe4 {[%emt 0:01:46]} Qxe4 {[%emt 0:01:19]} 22. Qxe4 {[%emt 0:00:41]} Rxe4 {[%emt 0:00:06]} 23. Bf3 {[%emt 0:02:32]} Re7 {[%emt 0:02:15]} 24. Rhe1 {[%emt 0:05:10]} Rxe1 {[%emt 0:05:32]} 25. Rxe1 {[%emt 0:01:14]} Kf8 {[%emt 0:01:08]} 26. Nd4 {[%emt 0:02:44]} Na5 {[%emt 0:03:01]} 27. b3 {[%emt 0:02:55]} Bxf3 {[%emt 0:01:08]} 28. Nxf3 {[%emt 0:00:01]} Nc6 {[%emt 0:00:36]} 29. Ne5 {[%emt 0:02:06]} Nxe5 {[%emt 0:01:29]} 30. Rxe5 {[%emt 0:00:01]} Rd8 {[%emt 0:04:32]} 31. Kc2 {[%emt 0:00:57]} f6 {[%emt 0:01:34]} 32. Re6 {[%emt 0:01:18]} Ra8 {[%emt 0:00:33]} 33. a4 {[%emt 0:01:40]} bxa4 {[%emt 0:00:38]} 34. bxa4 {[%emt 0:00:27]} Kf7 {[%emt 0:00:20]} 35. Rb6 {[%emt 0:00:30]} g6 {[%emt 0:01:02]} 36. c4 {[%emt 0:01:27]} f5 {[%emt 0:00:22]} 37. gxf5 {[%emt 0:01:23]} gxf5 {[%emt 0:00:11]} 38. Kd3 {[%emt 0:03:09]} Rd8+ {[%emt 0:10:41]} 39. Ke3 {[%emt 0:00:54]} Rc8 {[%emt 0:02:34]} 40. Kd4 {[%emt 0:00:27]} Rd8+ {[%emt 0:01:31]} 41. Ke5 {[%emt 0:01:36]} Rc8 {[%emt 0:00:32]} 42. Kd5 {[%emt 0:02:25]} Rd8+ {[%emt 0:00:23]} 43. Ke5 {[%emt 0:01:06]} Rc8 {[%emt 0:00:08]} 44. Kd4 {[%emt 0:02:40]} Rd8+ {[%emt 0:00:47]} 45. Kc3 {[%emt 0:02:03]} Ra8 {[%emt 0:04:38]} 46. c5 {[%emt 0:00:07]} f4 {[%emt 0:00:12]} 47. Kd4 {[%emt 0:00:33]} Rd8+ {[%emt 0:01:44]} 48. Ke4 {[%emt 0:00:15]} Rc8 {[%emt 0:00:13]} 49. c6 {[%emt 0:00:21]} a5 {[%emt 0:00:50]} 50. Kxf4 {[%emt 0:02:12]} Ke6 {[%emt 0:01:43]} 51. Kg5 {[%emt 0:02:28]} Kd6 {[%emt 0:00:22]} 52. Ra6 {[%emt 0:02:03]} Rc7 {[%emt 0:01:07]} 53. h5 {[%emt 0:01:59]} Kc5 {[%emt 0:01:05]} 54. Kf6 {[%emt 0:00:33]} Kd6 {[%emt 0:04:30]} 55. h6 {[%emt 0:00:30]} Kd5 {[%emt 0:00:27]} 56. Kf5 {[%emt 0:00:54]} Kd6 {[%emt 0:00:34]} 57. Rb6 {[%emt 0:00:42]} Kc5 {[%emt 0:02:34]} 58. Rb1 {[%emt 0:02:09]} Kd6 {[%emt 0:00:30]} 59. Rd1+ {[%emt 0:01:13]} Kxc6 {[%emt 0:00:39]} 60. Ke6 {[%emt 0:00:50]} Ra7 {[%emt 0:05:27]} 61. Rc1+ {[%emt 0:00:38]} Kb7 {[%emt 0:00:27]} 62. Kd7 {[%emt 0:01:09]} Kb6+ {[%emt 0:06:39]} 63. Ke6 {[%emt 0:00:39]} Kb7 {[%emt 0:00:41]} 64. Rd1 {[%emt 0:00:31]} Kc6 {[%emt 0:02:46]} 65. Rc1+ {[%emt 0:00:04]} Kb7 {[%emt 0:00:10]} 66. Rd1 {[%emt 0:00:02]} Kc6 {[%emt 0:00:40]} 67. Rg1 {[%emt 0:01:14]} Kc5 {[%emt 0:00:34]} 68. Rh1 {[%emt 0:00:39]} 1/2-1/2